fUST/lending_fUST_20250517
["ID","MTS","AMOUNT","RATE_DAILY","PERIOD"]
[361309725,1747446635390,-450.0,0.00013835,2]
[361309726,1747446635400,-450.0,0.00013835,2]
[361309727,1747446635409,-450.0,0.00013835,2]
[361309728,1747446635418,-450.0,0.00013835,2]
[361309729,1747446635428,-450.0,0.00013835,2]
[361309730,1747446635437,-450.0,0.00013835,2]
[361309731,1747446635446,-450.0,0.00013835,2]
[361309732,1747446635456,-450.0,0.00013835,2]
[361309733,1747446635465,-450.0,0.00013835,2]
[361309734,1747446635474,-450.0,0.00013835,2]
[361309735,1747446635484,-450.0,0.00013835,2]
[361309736,1747446635494,-450.0,0.00013835,2]
[361309737,1747446635503,-450.0,0.00013835,2]
[361309738,1747446635512,-450.0,0.00013835,2]
[361309739,1747446635522,-450.0,0.00013835,2]
[361309740,1747446635531,-450.0,0.00013835,2]
[361309741,1747446635540,-450.0,0.00013835,2]
[361309742,1747446635550,-450.0,0.00013835,2]
[361309743,1747446635559,-450.0,0.00013835,2]
[361309744,1747446635569,-450.0,0.00013835,2]
[361309745,1747446635578,-360.75297471,0.00013835,2]
[361309746,1747446635587,-450.0,0.00013835,2]
[361309747,1747446635597,-450.0,0.00013835,2]
[361309748,1747446635606,-450.0,0.00013835,2]
[361309749,1747446635616,-450.0,0.00013835,2]
[361309750,1747446635626,-450.0,0.00013835,2]
[361309751,1747446635636,-450.0,0.00013835,2]
[361309752,1747446635645,-450.0,0.00013835,2]
[361309753,1747446635654,-450.0,0.00013835,2]
[361309754,1747446635663,-450.0,0.00013835,2]
[361309755,1747446635673,-450.0,0.00013835,2]
[361309756,1747446635683,-450.0,0.00013835,2]
[361309757,1747446635693,-450.0,0.00013835,2]
[361309758,1747446635702,-450.0,0.00013835,2]
[361309759,1747446635711,-450.0,0.00013835,2]
[361309760,1747446635721,-450.0,0.00013835,2]
[361309761,1747446635731,-450.0,0.00013835,2]
[361309762,1747446635740,-450.0,0.00013835,2]
[361309763,1747446635749,-450.0,0.00013835,2]
[361309764,1747446635759,-450.0,0.00013835,2]
[361309765,1747446635769,-450.0,0.00013835,2]
[361309766,1747446635779,-450.0,0.00013835,2]
[361309767,1747446635788,-450.0,0.00013835,2]
[361309768,1747446635798,-450.0,0.00013835,2]
[361309769,1747446635807,-450.0,0.00013835,2]
[361309770,1747446635816,-450.0,0.00013835,2]
[361309771,1747446635826,-497.29,0.00013835,2]
[361309772,1747446635835,-450.0,0.00013835,2]
[361309773,1747446635845,-450.0,0.00013835,2]
[361309774,1747446635854,-450.0,0.00013835,2]
[361309775,1747446635863,-450.0,0.00013835,2]
[361309776,1747446635874,-151.0,0.00013835,2]
[361309777,1747446635884,-450.0,0.00013835,2]
[361309778,1747446635893,-205.62734,0.00013835,2]
[361309779,1747446635903,-450.0,0.00013835,2]
[361309780,1747446635912,-450.0,0.00013835,2]
[361309781,1747446635922,-450.0,0.00013835,2]
[361309782,1747446635932,-450.0,0.00013835,2]
[361309783,1747446635941,-450.0,0.00013835,2]
[361309784,1747446635950,-450.0,0.00013835,2]
[361309785,1747446635960,-450.0,0.00013835,2]
[361309786,1747446635972,-450.0,0.00013835,2]
[361309787,1747446635982,-450.0,0.00013835,2]
[361309788,1747446635991,-450.0,0.00013835,2]
[361309789,1747446636001,-450.0,0.00013835,2]
[361309790,1747446636011,-450.0,0.00013835,2]
[361309791,1747446636021,-450.0,0.00013835,2]
[361309792,1747446636030,-450.0,0.00013835,2]
[361309793,1747446636039,-450.0,0.00013835,2]
[361309794,1747446636050,-450.0,0.00013835,2]
[361309795,1747446636060,-450.0,0.00013835,2]
[361309796,1747446636069,-450.0,0.00013835,2]
[361309797,1747446636079,-450.0,0.00013835,2]
[361309798,1747446636089,-450.0,0.00013835,2]
[361309799,1747446636098,-450.0,0.00013835,2]
[361309800,1747446636108,-495.43,0.00013835,2]
[361309801,1747446636120,-450.0,0.00013835,2]
[361309802,1747446636131,-450.0,0.00013835,2]
[361309803,1747446636140,-450.0,0.00013835,2]
[361309804,1747446636150,-450.0,0.00013835,2]
[361309805,1747446636159,-450.0,0.00013835,2]
[361309806,1747446636169,-802.82,0.00013835,2]
[361309807,1747446636178,-450.0,0.00013835,2]
[361309808,1747446636187,-450.0,0.00013835,2]
[361309809,1747446636197,-450.0,0.00013835,2]
[361309810,1747446636206,-450.0,0.00013972,2]
[361309811,1747446636216,-450.0,0.00013972,2]
[361309812,1747446636225,-489.1342308,0.00013972,2]
[361309813,1747446636235,-466.18551161,0.00013972,2]
[361309814,1747446636245,-450.0,0.00013972,2]
[361309815,1747446636254,-1137.14,0.00013972,2]
[361309816,1747446636264,-450.0,0.00013972,2]
[361309817,1747446636273,-450.0,0.00013972,2]
[361309818,1747446636283,-462.5117731,0.00013972,2]
[361309819,1747446636293,-456.60067758,0.00013972,2]
[361309820,1747446636303,-456.81721945,0.00013972,2]
[361309821,1747446636313,-450.0,0.00013972,2]
[361309822,1747446636322,-450.0,0.00013972,2]
[361309823,1747446636333,-577.20095835,0.00013972,2]
[361309824,1747446636343,-460.10205022,0.00013972,2]
[361309825,1747446636353,-462.12432755,0.00013972,2]
[361309826,1747446636363,-450.0,0.00013972,2]
[361309827,1747446636376,-463.13504472,0.00013972,2]
[361309828,1747446636386,-450.0,0.00013972,2]
[361309829,1747446636395,-459.57297957,0.00013972,2]
[361309830,1747446636405,-459.55030186,0.00013972,2]
[361309831,1747446636415,-450.0,0.00013972,2]
[361309832,1747446636424,-450.0,0.00013972,2]
[361309833,1747446636433,-450.0,0.00013972,2]
[361309834,1747446636443,-450.0,0.00013972,2]
[361309835,1747446636452,-450.0,0.00013972,2]
[361309836,1747446636463,-450.0,0.00013972,2]
[361309837,1747446636473,-450.0,0.00013972,2]
[361309838,1747446636482,-450.0,0.00013972,2]
[361309839,1747446636492,-457.26129019,0.00013972,2]
[361309840,1747446636502,-450.0,0.00013972,2]
[361309841,1747446636512,-459.95151093,0.00013972,2]
[361309842,1747446636522,-450.0,0.00013972,2]
[361309843,1747446636532,-451.57960121,0.00013972,2]
[361309844,1747446636542,-450.0,0.00013972,2]
[361309845,1747446636551,-557.31,0.00013972,2]
[361309846,1747446636560,-565.37905324,0.00013972,2]
[361309847,1747446636570,-465.38496803,0.00013972,2]
[361309848,1747446636580,-450.0,0.00013972,2]
[361309849,1747446636589,-450.0,0.00013972,2]
[361309850,1747446636599,-465.57403015,0.00013972,2]
[361309851,1747446636609,-450.0,0.00013972,2]
[361309852,1747446636620,-450.0,0.00013972,2]
[361309853,1747446636629,-489.45214867,0.00013972,2]
[361309854,1747446636638,-450.0,0.00013972,2]
[361309855,1747446636648,-604.2,0.00013972,2]
[361309856,1747446636657,-432.86627119,0.00013972,2]
[361309857,1747446636666,-458.14005552,0.00013972,2]
[361309858,1747446636675,-812.03,0.00013972,2]
[361309859,1747446636685,-151.0,0.00013972,2]
[361309860,1747446636695,-532.15751101,0.00013972,2]
[361309861,1747446636705,-450.0,0.00013972,2]
[361309862,1747446636714,-450.0,0.00013972,2]
[361309863,1747446636724,-450.0,0.00013972,2]
[361309864,1747446636734,-152.697796,0.00013972,2]
[361309865,1747446636743,-450.0,0.00013972,2]
[361309866,1747446636753,-450.0,0.00013972,2]
[361309867,1747446636763,-450.0,0.00013972,2]
[361309868,1747446636772,-450.0,0.00013972,2]
[361309869,1747446636781,-450.0,0.00013972,2]
[361309870,1747446636791,-450.0,0.00013972,2]
[361309871,1747446636801,-151.0,0.00013972,2]
[361309872,1747446636810,-450.0,0.00013972,2]
[361309873,1747446636819,-1119.19,0.00013972,2]
[361309874,1747446636829,-461.72756815,0.00013972,2]
[361309875,1747446636840,-450.0,0.00013972,2]
[361309876,1747446636849,-450.0,0.00013972,2]
[361309877,1747446636859,-151.0,0.00013972,2]
[361309878,1747446636871,-455.76793607,0.00013972,2]
[361309879,1747446636881,-151.0,0.00013972,2]
[361309880,1747446636890,-151.9498417,0.00013972,2]
[361309881,1747446636900,-450.0,0.00013972,2]
[361309882,1747446636911,-450.0,0.00013972,2]
[361309883,1747446636920,-450.0,0.00013972,2]
[361309884,1747446636930,-450.0,0.00013972,2]
[361309885,1747446636939,-450.0,0.00013972,2]
[361309886,1747446636948,-450.0,0.00013972,2]
[361309887,1747446636958,-450.0,0.00013972,2]
[361309888,1747446636971,-450.0,0.00013972,2]
[361309889,1747446636980,-450.0,0.00013972,2]
[361309890,1747446636990,-450.0,0.00013972,2]
[361309891,1747446636999,-450.0,0.00013972,2]
[361309892,1747446637009,-450.0,0.00013972,2]
[361309893,1747446637018,-151.0,0.00013972,2]
[361309894,1747446637157,-151.0,0.00013972,2]
[361309895,1747446637166,-151.0,0.00013972,2]
[361309896,1747446637176,-151.0,0.00013972,2]
[361309897,1747446637186,-160.999632,0.00013972,2]
[361309898,1747446637194,-450.0,0.00013972,2]
[361309899,1747446637203,-450.0,0.00013972,2]
[361309900,1747446637212,-450.0,0.00013972,2]
[361309901,1747446637222,-496.40946197,0.00013972,2]
[361309902,1747446637232,-450.0,0.00013972,2]
[361309903,1747446637241,-450.0,0.00013972,2]
[361309904,1747446637250,-450.0,0.00013972,2]
[361309905,1747446637260,-450.0,0.00013972,2]
[361309906,1747446637269,-450.0,0.00013972,2]
[361309907,1747446637279,-528.22566065,0.00013972,2]
[361309908,1747446637288,-455.39582135,0.00013972,2]
[361309909,1747446637298,-450.0,0.00013972,2]
[361309910,1747446637307,-450.0,0.00013972,2]
[361309911,1747446637316,-450.0,0.00013972,2]
[361309912,1747446637325,-455.59215532,0.00013972,2]
[361309913,1747446637335,-450.0,0.00013972,2]
[361309914,1747446637344,-450.0,0.00013972,2]
[361309915,1747446637353,-460.29266027,0.00013972,2]
[361309916,1747446637362,-450.0,0.00013972,2]
[361309917,1747446637376,-195.96085723,0.00013972,2]
[361309918,1747446637386,-450.0,0.00013972,2]
[361309919,1747446637396,-450.0,0.00013972,2]
[361309920,1747446637416,-450.0,0.00013972,2]
[361309921,1747446637427,-450.0,0.00013972,2]
[361309922,1747446637437,-156.736786,0.00013972,2]
[361309923,1747446637447,-450.0,0.00013972,2]
[361309924,1747446637457,-450.0,0.00013972,2]
[361309925,1747446637468,-450.0,0.00013972,2]
[361309926,1747446637478,-505.47512466,0.00013972,2]
[361309927,1747446637489,-450.0,0.00013972,2]
[361309928,1747446637499,-480.78862856,0.00013972,2]
[361309929,1747446637510,-497.29,0.00013972,2]
[361309931,1747446637520,-455.98802068,0.00013972,2]
[361309932,1747446637529,-450.0,0.00013972,2]
[361309933,1747446637541,-457.78248991,0.00013972,2]
[361309934,1747446637550,-450.0,0.00013972,2]
[361309935,1747446637560,-151.0,0.00013972,2]
[361309936,1747446637570,-450.0,0.00013972,2]
[361309937,1747446637580,-460.1626623,0.00013972,2]
[361309938,1747446637589,-460.35052644,0.00013972,2]
[361309939,1747446637599,-450.0,0.00013972,2]
[361309940,1747446637609,-454.57907343,0.00013972,2]
[361309941,1747446637621,-450.0,0.00013972,2]
[361309942,1747446637632,-450.0,0.00013972,2]
[361309943,1747446637642,-450.0,0.00013972,2]
[361309944,1747446637652,-450.0,0.00013972,2]
[361309945,1747446637662,-450.0,0.00013972,2]
[361309947,1747446637671,-549.71752899,0.00013972,2]
[361309948,1747446637682,-456.79171619,0.00013972,2]
[361309949,1747446637691,-450.0,0.00013972,2]
[361309950,1747446637701,-450.0,0.00013972,2]
[361309951,1747446637711,-312.6517395,0.00013972,2]
[361309952,1747446637721,-450.0,0.00013972,2]
[361309954,1747446637731,-450.0,0.00013972,2]
[361309955,1747446637740,-247.67146741,0.00013972,2]
[361309956,1747446637750,-462.61664816,0.00013972,2]
[361309957,1747446637760,-463.38670279,0.00013972,2]
[361309958,1747446637770,-459.57339974,0.00013972,2]
[361309960,1747446637780,-450.0,0.00013972,2]
[361309961,1747446637790,-495.43,0.00013972,2]
[361309963,1747446637800,-450.0,0.00013972,2]
[361309964,1747446637810,-467.67031037,0.00013972,2]
[361309965,1747446637819,-450.0,0.00013972,2]
[361309966,1747446637829,-450.0,0.00013972,2]
[361309967,1747446637839,-450.0,0.00013972,2]
[361309968,1747446637849,-802.82,0.00013972,2]
[361309969,1747446637858,-450.0,0.00013972,2]
[361309970,1747446637868,-464.71783578,0.00013972,2]
[361309971,1747446637879,-459.02226974,0.00013972,2]
[361309973,1747446637889,-160.0,0.00013989,2]
[361309974,1747446637900,-214.545882,0.00013991,2]
[361309975,1747446637909,-450.0,0.00014109,2]
[361309976,1747446637920,-379.22098986,0.00014109,2]
[361309977,1747446637929,-450.0,0.00014109,2]
[361309978,1747446637939,-1137.14,0.00014109,2]
[361309980,1747446637949,-450.0,0.00014109,2]
[361309981,1747446637959,-495.14288688,0.00014109,2]
[361309982,1747446637970,-450.0,0.00014109,2]
[361309983,1747446637980,-450.0,0.00014109,2]
[361309984,1747446637990,-507.39,0.00014109,2]
[361309985,1747446637999,-195.32139669,0.00014109,2]
[361309986,1747446638011,-450.0,0.00014109,2]
[361309987,1747446638020,-450.0,0.00014109,2]
[361309988,1747446638030,-450.0,0.00014109,2]
[361309989,1747446638044,-450.0,0.00014109,2]
[361309990,1747446638053,-450.0,0.00014109,2]
[361309991,1747446638064,-450.0,0.00014109,2]
[361309992,1747446638074,-492.54940854,0.00014109,2]
[361309993,1747446638084,-450.0,0.00014109,2]
[361309995,1747446638093,-450.0,0.00014109,2]
[361309996,1747446638103,-450.0,0.00014109,2]
[361309997,1747446638112,-557.31,0.00014109,2]
[361309999,1747446638124,-450.0,0.00014109,2]
[361310002,1747446638134,-422.90464675,0.00014109,2]
[361310004,1747446638144,-456.53235737,0.00014109,2]
[361310006,1747446638154,-454.85245345,0.00014109,2]
[361310008,1747446638164,-604.2,0.00014109,2]
[361310009,1747446638173,-812.03,0.00014109,2]
[361310011,1747446638184,-151.0,0.00014109,2]
[361310012,1747446638193,-450.0,0.00014109,2]
[361310013,1747446638203,-258.23555063,0.00014109,2]
[361310014,1747446638212,-499.46902417,0.00014109,2]
[361310015,1747446638221,-450.0,0.00014109,2]
[361310016,1747446638231,-450.0,0.00014109,2]
[361310017,1747446638241,-450.0,0.00014109,2]
[361310018,1747446638252,-450.0,0.00014109,2]
[361310019,1747446638262,-490.72734026,0.00014109,2]
[361310020,1747446638272,-458.74785326,0.00014109,2]
[361310021,1747446638281,-151.0,0.00014109,2]
[361310022,1747446638291,-480.98445007,0.00014109,2]
[361310023,1747446638300,-1119.19,0.00014109,2]
[361310024,1747446638310,-450.0,0.00014109,2]
[361310025,1747446638320,-450.0,0.00014109,2]
[361310026,1747446638329,-151.0,0.00014109,2]
[361310027,1747446638339,-237.9903564,0.00014109,2]
[361310028,1747446638348,-574.44851664,0.00014109,2]
[361310029,1747446638358,-457.28089043,0.00014109,2]
[361310030,1747446638367,-510.12084221,0.00014109,2]
[361310031,1747446638378,-465.27170092,0.00014109,2]
[361310032,1747446638388,-450.0,0.00014109,2]
[361310033,1747446638398,-450.0,0.00014109,2]
[361310034,1747446638408,-450.0,0.00014109,2]
[361310035,1747446638417,-457.17548958,0.00014109,2]
[361310036,1747446638427,-458.49874882,0.00014109,2]
[361310037,1747446638436,-450.0,0.00014109,2]
[361310038,1747446638446,-450.0,0.00014109,2]
[361310039,1747446638456,-450.0,0.00014109,2]
[361310040,1747446638465,-450.0,0.00014109,2]
[361310041,1747446638476,-455.04041248,0.00014109,2]
[361310042,1747446638487,-450.0,0.00014109,2]
[361310043,1747446638497,-458.48044322,0.00014109,2]
[361310044,1747446638507,-450.0,0.00014109,2]
[361310045,1747446638516,-456.3971974,0.00014109,2]
[361310046,1747446638526,-450.0,0.00014109,2]
[361310047,1747446638536,-463.65119657,0.00014109,2]
[361310048,1747446638546,-458.03443617,0.00014109,2]
[361310049,1747446638555,-450.0,0.00014109,2]
[361310050,1747446638565,-450.0,0.00014109,2]
[361310051,1747446638574,-450.0,0.00014109,2]
[361310052,1747446638583,-450.0,0.00014109,2]
[361310053,1747446638593,-457.22152393,0.00014109,2]
[361310054,1747446638603,-455.87982576,0.00014109,2]
[361310055,1747446638612,-450.0,0.00014109,2]
[361310056,1747446638623,-450.0,0.00014109,2]
[361310057,1747446638633,-454.55519832,0.00014109,2]
[361310058,1747446638642,-458.19503783,0.00014109,2]
[361310059,1747446638652,-240.61254075,0.00014109,2]
[361310060,1747446638661,-458.52714089,0.00014109,2]
[361310061,1747446638671,-450.0,0.00014109,2]
[361310062,1747446638680,-497.29,0.00014109,2]
[361310063,1747446638690,-457.73512393,0.00014109,2]
[361310064,1747446638699,-450.0,0.00014109,2]
[361310065,1747446638708,-151.0,0.00014109,2]
[361310066,1747446638717,-450.0,0.00014109,2]
[361310067,1747446638727,-224.44518388,0.00014109,2]
[361310068,1747446638736,-450.0,0.00014109,2]
[361310069,1747446638746,-450.0,0.00014109,2]
[361310070,1747446638755,-450.0,0.00014109,2]
[361310071,1747446638764,-450.0,0.00014109,2]
[361310072,1747446638774,-450.0,0.00014109,2]
[361310073,1747446638783,-450.0,0.00014109,2]
[361310074,1747446638792,-450.0,0.00014109,2]
[361310075,1747446638802,-450.0,0.00014109,2]
[361310076,1747446638811,-450.0,0.00014109,2]
[361310077,1747446638820,-495.43,0.00014109,2]
[361310078,1747446638829,-450.0,0.00014109,2]
[361310079,1747446638839,-370.04358361,0.00014109,2]
[361310080,1747446638848,-450.0,0.00014109,2]
[361310081,1747446638857,-434.57365337,0.00014109,2]
[361310082,1747446638867,-802.82,0.00014109,2]
[361310083,1747446638880,-450.0,0.00014109,2]
[361310084,1747446638889,-450.0,0.00014246,2]
[361310085,1747446638899,-450.0,0.00014246,2]
[361310086,1747446638908,-1137.14,0.00014246,2]
[361310087,1747446638918,-450.0,0.00014246,2]
[361310088,1747446638927,-219.32926504,0.00014246,2]
[361310089,1747446638936,-567.69,0.00014246,2]
[361310090,1747446638945,-529.27091319,0.00014246,2]
[361310091,1747446638955,-436.89150245,0.00014246,2]
[361310092,1747446638965,-450.0,0.00014246,2]
[361310093,1747446638975,-332.53945182,0.00014246,2]
[361310094,1747446638984,-450.0,0.00014246,2]
[361310095,1747446638994,-450.0,0.00014246,2]
[361310096,1747446639004,-450.0,0.00014246,2]
[361310097,1747446639013,-296.91873881,0.00014246,2]
[361310098,1747446639023,-450.0,0.00014246,2]
[361310099,1747446639033,-557.31,0.00014246,2]
[361310100,1747446639043,-2003.2338,0.00014246,2]
[361310101,1747446639052,-375.73841557,0.00014246,2]
[361310102,1747446639137,-160.0,0.00013989,2]
[361310103,1747446639147,-1627.49538443,0.00014246,2]
[361310104,1747446639156,-604.2,0.00014246,2]
[361310105,1747446639165,-812.03,0.00014246,2]
[361310106,1747446639175,-450.0,0.00014246,2]
[361310107,1747446639185,-450.0,0.00014246,2]
[361310108,1747446639195,-450.0,0.00014246,2]
[361310109,1747446639204,-378.67461555,0.00014246,2]
[361310194,1747446640326,-450.0,0.00013698,2]
[361310196,1747446640336,-523.8,0.00013835,2]
[361310198,1747446640346,-218.68031941,0.00014246,2]
[361310200,1747446640355,-519.36050103,0.00014246,2]
[361310202,1747446640365,-1119.19,0.00014246,2]
[361310204,1747446640376,-450.0,0.00014246,2]
[361310206,1747446640385,-450.0,0.00014246,2]
[361310208,1747446640394,-450.0,0.00014246,2]
[361310210,1747446640404,-450.0,0.00014246,2]
[361310212,1747446640414,-450.0,0.00014246,2]
[361310215,1747446640424,-450.0,0.00014246,2]
[361310217,1747446640433,-450.0,0.00014246,2]
[361310219,1747446640443,-450.0,0.00014246,2]
[361310221,1747446640452,-151.0,0.00014246,2]
[361310223,1747446640462,-450.0,0.00014246,2]
[361310225,1747446640471,-450.0,0.00014246,2]
[361310227,1747446640481,-450.0,0.00014246,2]
[361310229,1747446640491,-214.63467896,0.00014246,2]
[361310231,1747446640500,-450.0,0.00014246,2]
[361310233,1747446640510,-450.0,0.00014246,2]
[361310235,1747446640520,-450.0,0.00014246,2]
[361310238,1747446640529,-450.0,0.00014246,2]
[361310240,1747446640539,-450.0,0.00014246,2]
[361310243,1747446640548,-450.0,0.00014246,2]
[361310247,1747446640558,-450.0,0.00014246,2]
[361310249,1747446640567,-497.29,0.00014246,2]
[361310251,1747446640576,-450.0,0.00014246,2]
[361310253,1747446640586,-151.0,0.00014246,2]
[361310255,1747446640595,-450.0,0.00014246,2]
[361310257,1747446640604,-208.67023647,0.00014246,2]
[361310259,1747446640614,-450.0,0.00014246,2]
[361310261,1747446640623,-450.0,0.00014246,2]
[361310263,1747446640633,-450.0,0.00014246,2]
[361310265,1747446640642,-450.0,0.00014246,2]
[361310267,1747446640651,-261.62885798,0.00014246,2]
[361310269,1747446640661,-308.83102305,0.00014246,2]
[361310271,1747446640671,-233.99705739,0.00014246,2]
[361310273,1747446640680,-450.0,0.00014246,2]
[361310275,1747446640689,-495.43,0.00014246,2]
[361310277,1747446640698,-450.0,0.00014246,2]
[361310279,1747446640709,-450.0,0.00014246,2]
[361310281,1747446640718,-802.82,0.00014246,2]
[361310283,1747446640728,-450.0,0.00014246,2]
[361310285,1747446640738,-501.08157937,0.00014313,2]
[361310287,1747446640747,-500.0,0.00014313,2]
[361310289,1747446640757,-500.0,0.00014313,2]
[361310291,1747446640766,-314.31131728,0.00014313,2]
[361310293,1747446640776,-564.41726874,0.00014383,2]
[361310295,1747446640785,-450.0,0.00014383,2]
[361310297,1747446640795,-1137.14,0.00014383,2]
[361310299,1747446640804,-357.54469676,0.00014383,2]
[361310301,1747446640814,-450.0,0.00014383,2]
[361310303,1747446640823,-450.0,0.00014383,2]
[361310305,1747446640832,-450.0,0.00014383,2]
[361310307,1747446640841,-450.0,0.00014383,2]
[361310309,1747446640851,-450.0,0.00014383,2]
[361310311,1747446640860,-557.31,0.00014383,2]
[361310313,1747446640870,-604.2,0.00014383,2]
[361310315,1747446640882,-812.03,0.00014383,2]
[361310317,1747446640892,-151.0,0.00014383,2]
[361310319,1747446640901,-450.0,0.00014383,2]
[361310321,1747446640911,-450.0,0.00014383,2]
[361310323,1747446640921,-450.0,0.00014383,2]
[361310325,1747446640930,-166.519232,0.00014383,2]
[361310327,1747446640939,-1119.19,0.00014383,2]
[361310329,1747446640948,-450.0,0.00014383,2]
[361310331,1747446640957,-450.0,0.00014383,2]
[361310333,1747446640968,-151.0,0.00014383,2]
[361310335,1747446640979,-450.0,0.00014383,2]
[361310337,1747446640988,-599.57613154,0.00014383,2]
[361310339,1747446640997,-450.0,0.00014383,2]
[361310341,1747446641005,-450.0,0.00014383,2]
[361310343,1747446641014,-450.0,0.00014383,2]
[361310345,1747446641024,-450.0,0.00014383,2]
[361310347,1747446641033,-151.0,0.00014383,2]
[361310349,1747446641042,-238.446027,0.00014383,2]
[361310351,1747446641051,-450.0,0.00014383,2]
[361310353,1747446641061,-458.94,0.00014383,2]
[361310355,1747446641070,-450.0,0.00014383,2]
[361310357,1747446641079,-450.0,0.00014383,2]
[361310359,1747446641088,-266.98099877,0.00014383,2]
[361310361,1747446641097,-450.0,0.00014383,2]
[361310363,1747446641107,-450.0,0.00014383,2]
[361310365,1747446641116,-450.0,0.00014383,2]
[361310367,1747446641129,-450.0,0.00014383,2]
[361310369,1747446641138,-450.0,0.00014383,2]
[361310371,1747446641148,-497.29,0.00014383,2]
[361310373,1747446641158,-506.08052649,0.00014383,2]
[361310375,1747446641167,-151.0,0.00014383,2]
[361310377,1747446641177,-450.0,0.00014383,2]
[361310379,1747446641186,-450.0,0.00014383,2]
[361310382,1747446641196,-450.0,0.00014383,2]
[361310384,1747446641205,-450.0,0.00014383,2]
[361310385,1747446641215,-450.0,0.00014383,2]
[361310388,1747446641225,-454.14,0.00014383,2]
[361310390,1747446641235,-495.43,0.00014383,2]
[361310392,1747446641245,-450.0,0.00014383,2]
[361310394,1747446641256,-450.0,0.00014383,2]
[361310396,1747446641267,-802.82,0.00014383,2]
[361310398,1747446641275,-450.0,0.00014383,2]
[361310400,1747446641285,-600.0,0.000144,2]
[361310402,1747446641295,-419.92030125,0.0001452,2]
[361310404,1747446641304,-1137.14,0.0001452,2]
[361310406,1747446641314,-450.0,0.0001452,2]
[361310408,1747446641323,-450.0,0.0001452,2]
[361310410,1747446641337,-450.0,0.0001452,2]
[361310412,1747446641346,-450.0,0.0001452,2]
[361310414,1747446641356,-450.0,0.0001452,2]
[361310416,1747446641365,-557.31,0.0001452,2]
[361310418,1747446641376,-604.2,0.0001452,2]
[361310420,1747446641386,-812.03,0.0001452,2]
[361310422,1747446641395,-450.0,0.0001452,2]
[361310424,1747446641404,-437.76837837,0.0001452,2]
[361310426,1747446641413,-450.0,0.0001452,2]
[361310428,1747446641423,-1119.19,0.0001452,2]
[361310430,1747446641432,-450.0,0.0001452,2]
[361310432,1747446641441,-450.0,0.0001452,2]
[361310434,1747446641451,-450.0,0.0001452,2]
[361310436,1747446641460,-450.0,0.0001452,2]
[361310438,1747446641470,-450.0,0.0001452,2]
[361310440,1747446641479,-450.0,0.0001452,2]
[361310442,1747446641488,-390.87872071,0.0001452,2]
[361310444,1747446641497,-179.00595362,0.0001452,2]
[361310446,1747446641506,-450.0,0.0001452,2]
[361310448,1747446641516,-450.0,0.0001452,2]
[361310464,1747446641662,-450.0,0.0001452,2]
[361310466,1747446641672,-450.0,0.0001452,2]
[361310468,1747446641681,-450.0,0.0001452,2]
[361310470,1747446641690,-450.0,0.0001452,2]
[361310471,1747446641699,-450.0,0.0001452,2]